bitfinex-derivatives/quotes_BTCF0:USTF0_20250729
["timestamp","ask_amount","ask_price","bid_price","bid_amount"]
[1753821178836,0.58350901,117470.0,117460.0,0.31661]
[1753821179032,0.58350901,117470.0,117460.0,0.59685]
[1753821179238,0.57350901,117470.0,117460.0,0.59685]
[1753821179940,0.57350901,117470.0,117460.0,0.59885]
[1753821180342,0.57350901,117470.0,117460.0,0.31861]
[1753821180543,0.57350901,117470.0,117460.0,0.59885]
[1753821180843,0.57350901,117470.0,117440.0,0.78749]
[1753821180844,0.2188843,117450.0,117440.0,0.78749]
[1753821181041,0.5155743,117450.0,117440.0,1.06777]
[1753821181237,0.5155743,117450.0,117440.0,0.98267123]
[1753821181534,0.5155743,117450.0,117440.0,0.70239123]
[1753821181736,0.5155743,117450.0,117440.0,0.98263123]
[1753821181937,0.5155888,117440.0,117430.0,0.35356298]
[1753821182131,0.5155888,117440.0,117430.0,0.39304298]
[1753821182336,0.5155888,117440.0,117430.0,0.56751681]
[1753821182841,0.5155888,117440.0,117430.0,0.33421681]
[1753821183043,0.5155888,117440.0,117430.0,0.31665]
[1753821183234,0.5155888,117440.0,117430.0,4e-05]
[1753821183430,0.5155888,117440.0,117430.0,0.32753]
[1753821183633,0.5155888,117440.0,117430.0,0.24243123]
[1753821184145,0.5165888,117440.0,117430.0,0.51187123]
[1753821184445,0.5165888,117440.0,117430.0,0.26944]
[1753821184747,0.3591188,117440.0,117430.0,0.26944]
[1753821184937,0.1753288,117440.0,117430.0,0.27044]
[1753821185138,0.016,117440.0,117430.0,0.4407832]
[1753821185647,0.016,117440.0,117430.0,0.4879532]
[1753821185837,0.1863287,117440.0,117430.0,0.31761]
[1753821186350,0.1863287,117440.0,117430.0,0.4879532]
[1753821186839,0.1863287,117440.0,117430.0,0.31761]
[1753821187040,0.4819087,117440.0,117430.0,0.31761]
[1753821187242,0.4819087,117440.0,117430.0,0.001]
[1753821187243,0.5315887,117440.0,117430.0,0.001]
[1753821187841,0.5315887,117440.0,117430.0,0.09158]
[1753821188043,0.5315887,117440.0,117430.0,0.23119]
[1753821188244,0.5315887,117440.0,117430.0,0.31761]
[1753821188644,0.5315887,117440.0,117430.0,0.4879533]
[1753821188948,0.1863288,117440.0,117430.0,0.4879533]
[1753821189143,0.1863288,117440.0,117430.0,0.31761]
[1753821189444,0.1863288,117440.0,117430.0,0.4879533]
[1753821190534,0.1863288,117440.0,117430.0,0.31761]
[1753821191148,0.1863288,117440.0,117430.0,0.4879532]
[1753821193445,0.1863288,117440.0,117430.0,0.59797]
[1753821193846,0.1863288,117440.0,117430.0,0.0842948]
[1753821194052,0.2200778,117420.0,117410.0,0.33841]
[1753821194248,0.3069778,117420.0,117410.0,0.05801]
[1753821194444,0.5132478,117420.0,117410.0,0.05801]
[1753821194644,0.5132478,117420.0,117410.0,0.33837]
[1753821194845,0.5132478,117420.0,117410.0,0.5087423]
[1753821195043,0.5132478,117420.0,117410.0,0.05801]
[1753821195347,0.5182478,117420.0,117410.0,0.2293823]
[1753821195542,0.5192478,117420.0,117410.0,0.5097423]
[1753821196045,0.5192478,117420.0,117410.0,0.5483523]
[1753821196442,0.34889,117420.0,117410.0,0.5483523]
[1753821196638,0.05572,117420.0,117410.0,0.2733023]
[1753821196840,0.006,117420.0,117410.0,0.5536623]
[1753821197544,0.006,117420.0,117410.0,0.7239983]
[1753821197748,0.04972,117440.0,117430.0,0.1703433]
[1753821198050,0.04972,117440.0,117430.0,0.5370433]
[1753821198943,0.06172,117440.0,117430.0,0.5390433]
[1753821201452,0.2320487,117440.0,117430.0,0.5390433]
[1753821202351,0.3189487,117440.0,117430.0,0.5390433]
[1753821202552,0.4221887,117440.0,117430.0,0.5390433]
[1753821202751,0.06172,117440.0,117430.0,0.5390433]
[1753821203353,0.06172,117440.0,117430.0,0.2586833]
[1753821203554,0.232049,117440.0,117430.0,0.5390433]
[1753821203854,0.318949,117440.0,117430.0,0.5390433]
[1753821205053,0.422189,117440.0,117430.0,0.3687]
[1753821205350,0.525219,117440.0,117430.0,0.002]
[1753821206566,0.520219,117440.0,117430.0,0.002]
[1753821208359,0.5132625,117410.0,117400.0,0.005]
[1753821208666,0.4414116,117390.0,117380.0,0.27264844]
[1753821208957,0.5132916,117390.0,117380.0,0.00091]
[1753821209356,0.2556393,117380.0,117360.0,0.4583344]
[1753821209551,0.5559232,117380.0,117370.0,0.28123]
[1753821209951,0.5559232,117380.0,117370.0,0.4516605]
[1753821211056,0.5559232,117380.0,117370.0,0.4517005]
[1753821211446,0.5569232,117380.0,117370.0,0.4557005]
[1753821211655,0.5579232,117380.0,117370.0,0.4587005]
[1753821212157,0.62619917,117380.0,117370.0,0.4587005]
[1753821212851,0.62619917,117380.0,117370.0,0.1783405]
[1753821213257,0.62619917,117380.0,117370.0,0.4587005]
[1753821213661,0.62619917,117380.0,117370.0,0.4557005]
[1753821214062,0.62519917,117380.0,117370.0,0.4527005]
[1753821214261,0.62619917,117380.0,117370.0,0.4527005]
[1753821214458,0.62619917,117380.0,117370.0,0.1723405]
[1753821214662,0.62619917,117380.0,117370.0,0.4527005]
[1753821215364,0.62619917,117380.0,117370.0,0.1723405]
[1753821215567,0.62619917,117380.0,117370.0,0.4527005]
[1753821215864,0.62619917,117380.0,117370.0,0.4527404]
[1753821216660,0.62619917,117380.0,117370.0,0.28227]
[1753821216858,0.62619917,117380.0,117370.0,0.4527004]
[1753821217466,0.62619917,117380.0,117370.0,0.28227]
[1753821217664,0.62619917,117380.0,117370.0,0.4527004]
[1753821217870,0.62619917,117380.0,117370.0,0.28227]
[1753821218470,0.62619917,117380.0,117370.0,0.4527]
[1753821218770,0.62619917,117380.0,117370.0,0.45274]
[1753821218958,0.62619917,117380.0,117370.0,0.17238]
[1753821219160,0.62619917,117380.0,117370.0,0.28231]
[1753821219365,0.62619917,117380.0,117370.0,0.4527391]
[1753821220065,0.62619917,117380.0,117370.0,0.2814]
[1753821220269,0.62619917,117380.0,117370.0,0.4518278]
[1753821220569,0.62619917,117380.0,117370.0,0.2814]
[1753821220868,0.62619917,117380.0,117370.0,0.4518282]
[1753821221070,0.62619917,117380.0,117370.0,0.00104]
[1753821221371,0.62619917,117380.0,117370.0,0.4518282]
[1753821221663,0.62619917,117380.0,117370.0,0.2814]
[1753821221864,0.62619917,117380.0,117370.0,0.1714682]
[1753821222066,0.62619917,117380.0,117370.0,0.4527382]
[1753821222773,0.62619917,117380.0,117370.0,0.1723782]
[1753821223070,0.62619917,117380.0,117370.0,0.4527382]
[1753821223264,0.25438597,117380.0,117370.0,0.4527382]
[1753821223471,0.36818977,117380.0,117370.0,0.4533082]
[1753821223766,0.19777597,117380.0,117370.0,0.4567982]
[1753821223973,0.35550597,117380.0,117370.0,0.4567982]
[1753821224172,0.58558977,117380.0,117370.0,0.1758682]
[1753821224474,0.58558977,117380.0,117370.0,0.4518282]
[1753821224874,0.58558977,117380.0,117370.0,0.4562282]
[1753821225371,0.58558977,117380.0,117370.0,0.4518282]
[1753821226480,0.58558977,117380.0,117370.0,0.4531682]
[1753821227478,0.58558977,117380.0,117370.0,0.4562282]
[1753821228878,0.58558977,117380.0,117370.0,0.1758682]
[1753821229079,0.58558977,117380.0,117370.0,0.4562282]
[1753821229780,0.58558977,117380.0,117370.0,0.1758682]
[1753821229968,0.58558977,117380.0,117370.0,0.4562282]
[1753821232883,0.58558977,117380.0,117370.0,0.1758682]
[1753821233087,0.58558977,117380.0,117370.0,0.4517882]
[1753821233586,0.58558977,117380.0,117370.0,0.4531282]
[1753821233777,0.58558977,117380.0,117370.0,0.4561882]
[1753821236181,0.58558977,117380.0,117370.0,0.4517882]
[1753821236385,0.58558977,117380.0,117370.0,0.4531282]
[1753821238275,0.58558977,117380.0,117370.0,0.00104]
[1753821238481,0.5183417,117340.0,117330.0,0.0833493]
[1753821238688,0.5183417,117340.0,117330.0,0.3598593]
[1753821239088,0.5183417,117340.0,117330.0,0.5303455]
[1753821239492,0.5183417,117340.0,117330.0,0.28365]
[1753821239890,0.5193417,117340.0,117330.0,0.28565]
[1753821240085,0.5193417,117340.0,117330.0,0.4561362]
[1753821240287,0.5193417,117340.0,117330.0,0.4552262]
[1753821240682,0.5193417,117340.0,117330.0,0.1749062]
[1753821240878,0.5193417,117340.0,117330.0,0.28565]
[1753821241086,0.5203417,117340.0,117330.0,0.1798162]
[1753821241287,0.5203417,117340.0,117330.0,0.4601362]
[1753821241488,0.5203417,117340.0,117330.0,0.28965]
[1753821241687,0.5203417,117340.0,117330.0,0.1798162]
[1753821241890,0.5193417,117340.0,117330.0,0.4561362]
[1753821242187,0.5193417,117340.0,117330.0,0.4609462]
[1753821243491,0.5193417,117340.0,117330.0,0.29046]
[1753821243791,0.5193417,117340.0,117330.0,0.180626]
[1753821243992,0.5193417,117340.0,117330.0,0.2905]
[1753821244891,0.5193417,117340.0,117330.0,0.01014]
[1753821245089,0.5193417,117340.0,117330.0,0.00304]
[1753821245288,0.5193417,117340.0,117330.0,0.28336]
[1753821245783,0.5193417,117340.0,117330.0,0.28373]
[1753821245989,0.5193417,117340.0,117330.0,0.455726]
[1753821246293,0.5193417,117340.0,117330.0,0.00304]
[1753821246996,0.5193417,117340.0,117330.0,0.28352]
[1753821247197,0.5193417,117340.0,117330.0,0.00304]
[1753821247495,0.5193417,117340.0,117330.0,0.28352]
[1753821248698,0.5193417,117340.0,117330.0,0.454006]
[1753821248888,0.5193417,117340.0,117330.0,0.28389]
[1753821249398,0.5193417,117340.0,117330.0,0.454376]
[1753821250501,0.5193417,117340.0,117330.0,0.455516]
[1753821250799,0.5193417,117340.0,117330.0,0.455886]
[1753821251304,0.5193417,117340.0,117330.0,0.175406]
[1753821251495,0.5193417,117340.0,117330.0,0.456046]
[1753821251993,0.04995,117340.0,117330.0,0.456046]
[1753821252194,0.001,117340.0,117330.0,0.456616]
[1753821252393,0.04995,117340.0,117330.0,0.456616]
[1753821253499,0.001,117340.0,117330.0,0.456616]
[1753821253804,0.001,117340.0,117330.0,0.627072]
[1753821254099,0.5598889,117370.0,117360.0,0.1713526]
[1753821254300,0.5598889,117370.0,117360.0,0.4519926]
[1753821255100,0.5598889,117370.0,117360.0,0.4510826]
[1753821255296,0.5598889,117370.0,117360.0,0.1704426]
[1753821255602,0.34684,117340.0,117330.0,0.7312271]
[1753821255799,0.34684,117340.0,117330.0,1.0119871]
[1753821256193,0.34684,117340.0,117330.0,1.0109871]
[1753821256389,0.34684,117340.0,117330.0,1.0095571]
[1753821256896,0.5173112,117340.0,117330.0,0.7282271]
[1753821257202,0.5183112,117340.0,117330.0,0.7312271]
[1753821257399,0.5183112,117340.0,117330.0,1.0118671]
[1753821257592,0.5183112,117340.0,117330.0,1.0128671]
[1753821257996,0.5183112,117340.0,117330.0,0.75715]
[1753821258209,0.5183112,117340.0,117330.0,0.28456]
[1753821258497,0.5183112,117340.0,117330.0,0.00404]
[1753821258796,0.5183112,117340.0,117330.0,0.4551657]
[1753821259303,0.5183112,117340.0,117330.0,0.4560757]
[1753821260399,0.5183112,117340.0,117330.0,0.28612]
[1753821261294,0.5183112,117340.0,117330.0,0.4566057]
[1753821263296,0.5183112,117340.0,117330.0,0.28612]
[1753821263802,0.5183112,117340.0,117330.0,0.28596]
[1753821264098,0.5183112,117340.0,117330.0,0.00404]
[1753821264302,0.5183112,117340.0,117330.0,0.4563262]
[1753821264507,0.5183112,117340.0,117330.0,0.28584]
[1753821264800,0.5183112,117340.0,117330.0,0.00404]
[1753821265002,0.5183112,117340.0,117330.0,0.4569662]
[1753821268409,0.5183112,117340.0,117330.0,0.00404]
[1753821268607,0.517355,117310.0,117300.0,0.00591]
[1753821268907,0.517355,117310.0,117300.0,0.28807]
[1753821269102,0.517355,117310.0,117300.0,0.00591]
[1753821269305,0.58536583,117310.0,117300.0,0.00591]
[1753821269513,0.58536583,117310.0,117300.0,0.28716]
[1753821269910,0.58536583,117310.0,117300.0,0.28724]
[1753821270214,0.58736583,117310.0,117300.0,0.29024]
[1753821270812,0.58636583,117310.0,117300.0,0.29015]
[1753821271002,0.58936583,117310.0,117300.0,0.29015]
[1753821271707,0.58936583,117310.0,117300.0,0.007]
[1753821271905,0.58836583,117310.0,117300.0,0.005]
[1753821272109,0.58936583,117310.0,117300.0,0.006]
[1753821272309,0.58936583,117310.0,117300.0,0.28816]
[1753821272911,0.58936583,117310.0,117300.0,0.006]
[1753821273306,0.59036583,117310.0,117300.0,0.28816]
[1753821273610,0.59036583,117310.0,117300.0,0.006]
[1753821274099,0.1705588,117280.0,117270.0,0.6019526]
[1753821274304,0.1705588,117280.0,117270.0,1.3581926]
[1753821274305,0.27617,117280.0,117270.0,1.3581926]
[1753821274499,0.12604,117280.0,117270.0,1.3581926]
[1753821274710,0.12604,117280.0,117270.0,0.9989033]
[1753821274913,0.04838,117280.0,117270.0,0.9989033]
[1753821275301,0.04838,117280.0,117270.0,1.2819033]
[1753821275503,0.04838,117280.0,117270.0,0.5272233]
[1753821275703,0.04838,117280.0,117270.0,1.2819033]
[1753821276013,0.04838,117280.0,117270.0,1.29010694]
[1753821276308,0.21004083,117310.0,117300.0,0.1705296]
[1753821276511,0.07301083,117310.0,117300.0,0.4551696]
[1753821276705,0.07301083,117310.0,117300.0,0.7250696]
[1753821277009,0.07201083,117310.0,117300.0,0.7260696]
[1753821277210,0.004,117310.0,117300.0,0.7260696]
[1753821277699,0.008,117310.0,117300.0,0.7260696]
[1753821278313,0.04838,117320.0,117310.0,0.1719951]
[1753821278708,0.07067,117330.0,117320.0,0.1705005]
[1753821278905,0.04838,117330.0,117320.0,0.9270205]
[1753821279308,0.04838,117340.0,117330.0,0.256296]
[1753821279612,0.04838,117340.0,117330.0,0.257206]
[1753821280009,0.11681277,117340.0,117330.0,0.257206]
[1753821281209,0.12281277,117340.0,117330.0,0.257206]
[1753821281618,0.21357277,117340.0,117330.0,0.257206]
[1753821281911,0.36190277,117340.0,117330.0,0.257206]
[1753821282310,0.20047277,117340.0,117330.0,0.257206]
[1753821282512,0.07443277,117340.0,117330.0,0.257206]
[1753821282712,0.12281277,117340.0,117330.0,0.257206]
[1753821283312,0.12781277,117340.0,117330.0,0.258206]
[1753821284015,0.21407277,117340.0,117330.0,0.258206]
[1753821284415,0.28346277,117340.0,117330.0,0.258206]
[1753821285017,0.36080277,117340.0,117330.0,0.258206]
[1753821285516,0.42131277,117340.0,117330.0,0.258206]
[1753821285719,0.59132427,117340.0,117330.0,0.001]
[1753821286015,0.59132427,117340.0,117330.0,0.454446]
[1753821286220,0.59132427,117340.0,117330.0,0.001]
[1753821286422,0.59132427,117340.0,117330.0,0.28408]
[1753821286815,0.59132427,117340.0,117330.0,0.28404]
[1753821288316,0.59132427,117340.0,117330.0,0.001]
[1753821288521,0.59132427,117340.0,117330.0,0.28392]
[1753821289324,0.59132427,117340.0,117330.0,0.454406]
[1753821292320,0.59132427,117340.0,117330.0,0.28396]
[1753821294327,0.59132427,117340.0,117330.0,0.001]
[1753821294628,0.59132427,117340.0,117330.0,0.28384]
[1753821297826,0.59132427,117340.0,117330.0,0.001]
[1753821298321,0.59132427,117340.0,117300.0,0.0762093]
[1753821298322,0.5099372,117310.0,117300.0,0.0762093]
[1753821298521,0.5099663,117290.0,117280.0,0.2157016]
[1753821298826,0.5099663,117290.0,117280.0,0.3613993]
[1753821299033,0.5099663,117290.0,117280.0,0.28519]
[1753821299935,0.5099663,117290.0,117280.0,0.00251]
[1753821300120,0.33942,117290.0,117280.0,0.28507]
[1753821300326,0.5119663,117290.0,117280.0,0.28607]
[1753821300934,0.5139663,117290.0,117280.0,0.28607]
[1753821302041,0.004,117290.0,117280.0,0.63703128]
[1753821302226,0.00243,117290.0,117280.0,0.63703128]
[1753821302927,0.00243,117290.0,117280.0,0.43068058]
[1753821303126,0.00243,117290.0,117280.0,0.71496058]
[1753821303326,0.00243,117290.0,117280.0,0.63875128]
[1753821303521,0.04938,117290.0,117280.0,0.63775128]
[1753821304722,0.04838,117290.0,117280.0,0.35347128]
[1753821304926,0.4514564,117290.0,117280.0,0.18137329]
[1753821305135,0.5119664,117290.0,117280.0,0.93721329]
[1753821305335,0.34142,117290.0,117280.0,0.93721329]
[1753821306532,0.34142,117290.0,117280.0,0.65309329]
[1753821306738,0.5139663,117290.0,117280.0,0.93701329]
[1753821307125,0.5139663,117290.0,117280.0,0.9287108]
[1753821308038,0.5139663,117290.0,117280.0,0.9297108]
[1753821309951,0.34342,117290.0,117280.0,0.9297108]
[1753821310346,0.34342,117290.0,117280.0,1.0059201]
[1753821310546,0.34342,117290.0,117280.0,0.9297108]
[1753821310547,0.004,117290.0,117280.0,0.9297108]
[1753821310739,0.04638,117310.0,117300.0,0.2131637]
[1753821310941,0.04638,117310.0,117300.0,0.4968437]
[1753821311135,0.04638,117310.0,117300.0,0.7667437]
[1753821311943,0.04638,117310.0,117300.0,0.7677437]
[1753821312249,0.04838,117310.0,117300.0,0.7677437]
[1753821312743,0.04638,117310.0,117300.0,0.7667437]
[1753821313045,0.05038,117310.0,117300.0,0.7687437]
[1753821313544,0.04738,117310.0,117300.0,0.7677437]
[1753821313744,0.04838,117310.0,117300.0,0.7697437]
[1753821315841,0.04838,117310.0,117300.0,0.4860637]
[1753821316041,0.5085572,117310.0,117300.0,0.55614]
[1753821316242,0.5085572,117310.0,117300.0,0.2729]
[1753821316547,0.5085572,117310.0,117300.0,0.28624]
[1753821316847,0.5085572,117310.0,117300.0,0.003]
[1753821317039,0.5085572,117310.0,117300.0,0.28624]
[1753821318849,0.5085572,117310.0,117300.0,0.1735318]
[1753821319043,0.5085572,117310.0,117300.0,0.4566518]
[1753821319447,0.5085572,117310.0,117300.0,0.28612]
[1753821319647,0.5085572,117310.0,117300.0,0.4566518]
[1753821320041,0.5085572,117310.0,117300.0,0.1735318]
[1753821320241,0.5085572,117310.0,117300.0,0.4565718]
[1753821322246,0.33804,117310.0,117300.0,0.4565718]
[1753821322750,0.26593,117310.0,117300.0,0.4565718]
[1753821322948,0.5085572,117310.0,117300.0,0.1735318]
[1753821323148,0.5085572,117310.0,117300.0,0.4563318]
[1753821323853,0.5085572,117310.0,117300.0,0.2858]
[1753821324053,0.5085572,117310.0,117300.0,0.4563318]
[1753821325955,0.5085572,117310.0,117300.0,0.2858]
[1753821326251,0.5085572,117310.0,117300.0,0.003]
[1753821326458,0.5085572,117310.0,117300.0,0.28564]
[1753821327354,0.5085572,117310.0,117300.0,0.4561718]
[1753821328249,0.5085572,117310.0,117300.0,0.003]
[1753821328450,0.04886,117300.0,117280.0,0.10576617]
[1753821328657,0.5101063,117290.0,117280.0,0.10576617]
[1753821328852,0.33956,117270.0,117260.0,0.7621587]
[1753821329052,0.3042054,117270.0,117260.0,1.0447587]
[1753821329253,0.3042054,117270.0,117260.0,1.0447599]
[1753821329453,0.3523154,117270.0,117260.0,0.59157]
[1753821329653,0.5101354,117270.0,117260.0,0.87417]
[1753821330053,0.5101354,117270.0,117260.0,0.87413]
[1753821330252,0.5101354,117270.0,117260.0,1.0447199]
[1753821331558,0.5131354,117270.0,117260.0,1.0457199]
[1753821332159,0.5131354,117270.0,117260.0,0.87513]
[1753821333060,0.5131354,117270.0,117260.0,1.0457199]
[1753821333455,0.5111354,117270.0,117260.0,1.0457199]
[1753821333657,0.5111354,117270.0,117260.0,1.0447199]
[1753821333852,0.5121354,117270.0,117260.0,0.87513]
[1753821334054,0.57995611,117270.0,117260.0,1.0457999]
[1753821335462,0.40938071,117270.0,117260.0,1.0457999]
[1753821335960,0.57995611,117270.0,117260.0,1.0457999]
[1753821336560,0.40938071,117270.0,117260.0,1.0457999]
[1753821337560,0.57995611,117270.0,117260.0,1.0457999]
[1753821338160,0.40938071,117270.0,117260.0,1.0457999]
[1753821338357,0.57995611,117270.0,117260.0,1.0457999]
[1753821338950,0.57995611,117270.0,117260.0,0.7631599]
[1753821339154,0.57995611,117270.0,117260.0,0.59257]
[1753821339356,0.57995611,117270.0,117260.0,0.87493]
[1753821339750,0.57995611,117270.0,117260.0,1.0455199]
[1753821341963,0.57995611,117270.0,117260.0,0.87493]
[1753821342164,0.57995611,117270.0,117260.0,1.0455199]
[1753821342364,0.40938071,117270.0,117260.0,1.0455199]
[1753821342861,0.57995611,117270.0,117260.0,1.0455199]
[1753821344063,0.40938071,117270.0,117260.0,1.0455199]
[1753821344369,0.57995611,117270.0,117260.0,1.0455199]
[1753821345563,0.40938071,117270.0,117260.0,1.0455199]
[1753821346157,0.57995611,117270.0,117260.0,0.52003]
[1753821346358,0.57995611,117270.0,117260.0,0.59337]
[1753821346563,0.57995611,117270.0,117260.0,0.87537]
[1753821346975,0.57995611,117270.0,117260.0,0.47272]
[1753821347166,0.57995611,117270.0,117260.0,0.75472]
[1753821348169,0.57795611,117270.0,117260.0,0.75372]
[1753821348469,0.57995611,117270.0,117260.0,0.47172]
[1753821348670,0.57995611,117270.0,117260.0,0.75372]
[1753821348866,0.57995611,117270.0,117260.0,0.47172]
[1753821349066,0.57995611,117270.0,117260.0,0.75364]
[1753821349271,0.57995611,117270.0,117260.0,0.7536]
[1753821349672,0.57995611,117270.0,117260.0,0.47172]
[1753821349970,0.57995611,117270.0,117260.0,0.7536]
[1753821350369,0.57995611,117270.0,117260.0,0.75352]
[1753821350569,0.57995611,117270.0,117260.0,0.47172]
[1753821350872,0.57995611,117270.0,117260.0,0.6423099]
[1753821351074,0.57995611,117270.0,117260.0,0.9241099]
[1753821351366,0.57995611,117270.0,117260.0,0.6423099]
[1753821351573,0.57995611,117270.0,117260.0,0.9240299]
[1753821351771,0.57995611,117270.0,117260.0,0.9239499]
[1753821352071,0.57995611,117270.0,117260.0,0.9972899]
[1753821352275,0.57995611,117270.0,117260.0,1.0445999]
[1753821352771,0.1705899,117260.0,117250.0,0.213246]
[1753821353073,0.5063299,117260.0,117250.0,0.615576]
[1753821353370,0.5063299,117260.0,117250.0,0.615656]
[1753821353769,0.5063299,117260.0,117250.0,0.615576]
[1753821354164,0.5073299,117260.0,117250.0,0.334896]
[1753821354766,0.5073299,117260.0,117250.0,0.616496]
[1753821355570,0.5073299,117260.0,117250.0,0.334896]
[1753821355871,0.5073299,117260.0,117250.0,0.616456]
[1753821356068,0.33674,117260.0,117250.0,0.334896]
[1753821356269,0.33774,117260.0,117250.0,0.616456]
[1753821356469,0.5083299,117260.0,117250.0,0.616456]
[1753821357676,0.5083299,117260.0,117250.0,0.12165]
[1753821357977,0.5083299,117260.0,117250.0,0.5738145]
[1753821358369,0.5083299,117260.0,117250.0,0.001]
[1753821358570,0.5083299,117260.0,117250.0,0.2826]
[1753821359170,0.5083299,117260.0,117250.0,0.001]
[1753821359476,0.6788979,117260.0,117250.0,0.2826]
[1753821359676,0.52942543,117260.0,117250.0,0.001]
[1753821359869,0.5083299,117260.0,117250.0,0.28256]
[1753821360069,0.5083299,117260.0,117250.0,0.001]
[1753821360274,0.5083299,117260.0,117250.0,0.28256]
[1753821361382,0.26439,117260.0,117250.0,0.5728142]
[1753821361571,0.5083297,117260.0,117250.0,0.5728142]
[1753821367670,0.002,117260.0,117250.0,0.5728142]
[1753821367882,0.06782071,117270.0,117250.0,0.572778]
[1753821368077,0.04602,117290.0,117280.0,0.1705606]
[1753821368273,0.432936,117290.0,117280.0,0.5713806]
[1753821368580,0.33574,117290.0,117280.0,0.5713806]
[1753821368782,0.506286,117290.0,117280.0,0.5713806]
[1753821370282,0.511286,117290.0,117280.0,0.5713806]
[1753821370790,0.509286,117290.0,117280.0,0.5713806]
[1753821371080,0.04902,117290.0,117280.0,0.5713806]
[1753821372882,0.05002,117290.0,117280.0,0.5723806]
[1753821375285,0.13394,117290.0,117280.0,0.5723806]
[1753821376284,0.05002,117290.0,117280.0,0.1715606]
[1753821376489,0.57993016,117290.0,117280.0,0.001]
[1753821376788,0.5118562,117290.0,117280.0,0.28216]
[1753821377381,0.5118562,117290.0,117280.0,0.001]
[1753821377596,0.6823842,117290.0,117280.0,0.001]
[1753821377797,0.6823842,117290.0,117280.0,0.28216]
[1753821378295,0.5118562,117290.0,117280.0,0.28216]
[1753821378490,0.6823842,117290.0,117280.0,0.28216]
[1753821378686,0.6823842,117290.0,117280.0,0.4527207]
[1753821378886,0.5118562,117290.0,117280.0,0.4527207]
[1753821379093,0.5118562,117290.0,117280.0,0.5680107]
[1753821380400,0.58028056,117290.0,117280.0,0.5680107]
[1753821380592,0.33737436,117290.0,117280.0,0.5680107]
[1753821380794,0.11844436,117290.0,117280.0,0.5680107]
[1753821380995,0.28899056,117290.0,117280.0,0.5680107]
[1753821381196,0.57770056,117290.0,117280.0,0.5680107]
[1753821381801,0.57770056,117290.0,117280.0,0.7586907]
[1753821382206,0.57770056,117290.0,117280.0,1.0398507]
[1753821382598,0.40715436,117290.0,117280.0,1.0398507]
[1753821382800,0.11879436,117290.0,117280.0,1.0398507]
[1753821383810,0.28934116,117290.0,117280.0,0.7586907]
[1753821384099,0.20271436,117290.0,117280.0,1.0398507]
[1753821384509,0.11879436,117290.0,117280.0,1.0398507]
[1753821384695,0.07242436,117290.0,117280.0,1.0398507]
[1753821385404,0.11879436,117290.0,117280.0,1.0398507]
[1753821386811,0.57805116,117290.0,117280.0,0.58813]
[1753821387105,0.57805116,117290.0,117280.0,0.7586914]
[1753821387307,0.57805116,117290.0,117280.0,1.0398514]
[1753821388407,0.57805116,117290.0,117280.0,0.001]
[1753821388601,0.74857916,117290.0,117280.0,0.001]
[1753821388799,0.5056706,117260.0,117250.0,0.11529]
[1753821389111,0.5056706,117260.0,117250.0,0.86825]
[1753821390207,0.5056706,117260.0,117250.0,0.86829]
[1753821390398,0.5076706,117260.0,117250.0,0.86929]
[1753821390601,0.5086706,117260.0,117250.0,0.87029]
[1753821391508,0.5056706,117260.0,117250.0,0.86829]
[1753821391808,0.5076706,117260.0,117250.0,0.11529]
[1753821392194,0.5076706,117260.0,117250.0,0.39645]
[1753821394205,0.5076706,117260.0,117250.0,0.5670542]
[1753821395509,0.5076688,117260.0,117250.0,0.5670542]
[1753821396313,0.249327,117260.0,117250.0,0.5670542]
[1753821396818,0.333247,117260.0,117250.0,0.5670542]
[1753821397110,0.333247,117260.0,117250.0,0.2858942]
[1753821397314,0.333247,117260.0,117250.0,0.5670542]
[1753821397812,0.333247,117260.0,117250.0,0.2858942]
[1753821398008,0.507667,117260.0,117250.0,0.39645]
[1753821398310,0.507667,117260.0,117250.0,0.567052]
[1753821398614,0.507667,117260.0,117250.0,0.11529]
[1753821398812,0.507667,117260.0,117250.0,0.39645]
[1753821400113,0.507667,117260.0,117250.0,0.11529]
[1753821400306,0.507667,117260.0,117250.0,0.39645]
[1753821400613,0.507667,117260.0,117250.0,0.11529]
[1753821401008,0.507667,117260.0,117250.0,0.39645]
[1753821401814,0.507667,117260.0,117250.0,0.11529]
[1753821402211,0.507667,117260.0,117250.0,0.39645]
[1753821402406,0.507667,117260.0,117250.0,0.5670519]
[1753821402607,0.507667,117260.0,117250.0,0.11529]
[1753821402913,0.507667,117260.0,117250.0,0.567052]
[1753821403821,0.507667,117260.0,117250.0,0.285892]
[1753821404009,0.507667,117260.0,117250.0,0.567052]
[1753821405717,0.507667,117260.0,117250.0,0.285892]
[1753821405918,0.507667,117260.0,117250.0,0.567052]
[1753821406516,0.507667,117260.0,117250.0,0.28116]
[1753821406719,0.272922,117250.0,117240.0,0.3213666]
[1753821407016,0.501652,117250.0,117240.0,1.1185966]
[1753821407220,0.501652,117250.0,117240.0,0.3228628]
[1753821407404,0.501652,117250.0,117240.0,1.0759428]
[1753821407920,0.502652,117250.0,117240.0,0.7957828]
[1753821408311,0.503652,117250.0,117240.0,0.7967828]
[1753821408513,0.503652,117250.0,117240.0,1.0779428]
[1753821408713,0.503652,117250.0,117240.0,0.3248628]
[1753821408910,0.503652,117250.0,117240.0,0.002]
[1753821409312,0.503652,117250.0,117240.0,0.28316]
[1753821409816,0.503652,117250.0,117240.0,0.002]
[1753821410414,0.504652,117250.0,117240.0,0.28312]
[1753821410616,0.504652,117250.0,117240.0,0.002]
[1753821410816,0.504652,117250.0,117240.0,0.28312]
[1753821411818,0.504652,117250.0,117240.0,0.28316]
[1753821414528,0.504652,117250.0,117240.0,0.5633767]
[1753821414918,0.05011,117250.0,117240.0,0.5633767]
[1753821418312,0.4358219,117250.0,117240.0,0.002]
[1753821418618,0.5046519,117250.0,117240.0,0.28312]
[1753821419016,0.5046519,117250.0,117240.0,0.002]
[1753821419320,0.5046519,117250.0,117240.0,0.28312]
[1753821419822,0.5066519,117250.0,117240.0,0.001]
[1753821420116,0.5086519,117250.0,117240.0,0.28212]
[1753821431032,0.3116215,117250.0,117240.0,0.39172]
[1753821431239,0.2247115,117250.0,117240.0,0.39172]
[1753821431634,0.2567615,117250.0,117240.0,0.39172]
[1753821431827,0.2567615,117250.0,117240.0,0.1106]
[1753821431828,0.5086515,117250.0,117240.0,0.1106]
[1753821432133,0.5086515,117250.0,117240.0,0.28208]
[1753821432332,0.5086515,117250.0,117240.0,0.001]
[1753821432635,0.5086515,117250.0,117240.0,0.28208]